[Event "Titled Tuesday Blitz May 16 Late 2023"]
[White "Karas, Marek"]
[Black "Figorito, Nick"]
[WhiteFideId "14928558"]
[BlackFideId "30923689"]
[WhiteElo "2233"]
[BlackElo "2338"]
[Result "1/2-1/2"]
[Round "07"]
[TimeControl "180+2"]
[Date "2023.05.16"]
[WhiteClock "0:00:29"]
[BlackClock "0:00:21"]

1. Nf3 {[%clk 0:03:00]}  Nf6 {[%clk 0:03:00]} 2. c4 {[%clk 0:03:00]}  c6 {[%clk 0:02:59]} 3. d4 {[%clk 0:02:58]}  d5 {[%clk 0:03:00]} 4. g3 {[%clk 0:02:58]}  g6 {[%clk 0:03:00]} 5. cxd5 {[%clk 0:02:56]}  cxd5 {[%clk 0:03:01]} 6. Nc3 {[%clk 0:02:56]}  Bg7 {[%clk 0:03:01]} 7. Bg2 {[%clk 0:02:57]}  O-O {[%clk 0:03:02]} 8. O-O {[%clk 0:02:57]}  Ne4 {[%clk 0:03:03]} 9. Nxe4 {[%clk 0:02:51]}  dxe4 {[%clk 0:03:04]} 10. Ne5 {[%clk 0:02:51]}  Qd5 {[%clk 0:02:44]} 11. f4 {[%clk 0:02:34]}  exf3 {[%clk 0:02:31]} 12. Bxf3 {[%clk 0:02:27]}  Qd8 {[%clk 0:02:15]} 13. Bf4 {[%clk 0:02:16]}  Nd7 {[%clk 0:02:13]} 14. Nxd7 {[%clk 0:02:05]}  Qxd7 {[%clk 0:02:01]} 15. e3 {[%clk 0:02:03]}  Qb5 {[%clk 0:01:53]} 16. Qb3 {[%clk 0:01:59]}  Qxb3 {[%clk 0:01:45]} 17. axb3 {[%clk 0:02:00]}  a6 {[%clk 0:01:35]} 18. Rfc1 {[%clk 0:01:57]}  Re8 {[%clk 0:01:26]} 19. Rc7 {[%clk 0:01:54]}  e5 {[%clk 0:01:23]} 20. dxe5 {[%clk 0:01:54]}  Bxe5 {[%clk 0:01:22]} 21. Bxb7 {[%clk 0:01:39]}  Bxf4 {[%clk 0:01:11]} 22. exf4 {[%clk 0:01:31]}  Bxb7 {[%clk 0:01:09]} 23. Rxb7 {[%clk 0:01:31]}  Re2 {[%clk 0:01:10]} 24. Rf1 {[%clk 0:01:22]}  Rd8 {[%clk 0:01:05]} 25. Rf2 {[%clk 0:01:21]}  Rdd2 {[%clk 0:00:59]} 26. Rxe2 {[%clk 0:01:15]}  Rxe2 {[%clk 0:00:59]} 27. Rb6 {[%clk 0:01:10]}  Rxb2 {[%clk 0:01:00]} 28. Rxa6 {[%clk 0:01:09]}  Rxb3 {[%clk 0:01:00]} 29. Kg2 {[%clk 0:01:09]}  h5 {[%clk 0:00:59]} 30. Ra2 {[%clk 0:01:01]}  Kg7 {[%clk 0:00:58]} 31. Re2 {[%clk 0:01:00]}  Rc3 {[%clk 0:00:57]} 32. h3 {[%clk 0:00:59]}  f5 {[%clk 0:00:55]} 33. Kf2 {[%clk 0:00:58]}  Kh6 {[%clk 0:00:54]} 34. Re3 {[%clk 0:00:58]}  Rc2+ {[%clk 0:00:42]} 35. Re2 {[%clk 0:00:59]}  Rc3 {[%clk 0:00:42]} 36. Kg2 {[%clk 0:00:54]}  Rb3 {[%clk 0:00:40]} 37. Rf2 {[%clk 0:00:55]}  Rc3 {[%clk 0:00:40]} 38. Rf3 {[%clk 0:00:55]}  Rc2+ {[%clk 0:00:41]} 39. Rf2 {[%clk 0:00:55]}  Rc3 {[%clk 0:00:41]} 40. Ra2 {[%clk 0:00:54]}  Rb3 {[%clk 0:00:41]} 41. Rc2 {[%clk 0:00:52]}  Rd3 {[%clk 0:00:41]} 42. Kf2 {[%clk 0:00:51]}  Rb3 {[%clk 0:00:41]} 43. Rc1 {[%clk 0:00:51]}  Rd3 {[%clk 0:00:41]} 44. Rg1 {[%clk 0:00:49]}  Ra3 {[%clk 0:00:40]} 45. h4 {[%clk 0:00:46]}  Rb3 {[%clk 0:00:39]} 46. Re1 {[%clk 0:00:47]}  Ra3 {[%clk 0:00:40]} 47. Rd1 {[%clk 0:00:47]}  Rb3 {[%clk 0:00:40]} 48. Rc1 {[%clk 0:00:47]}  Ra3 {[%clk 0:00:40]} 49. Rb1 {[%clk 0:00:48]}  Rc3 {[%clk 0:00:41]} 50. Re1 {[%clk 0:00:48]}  Ra3 {[%clk 0:00:41]} 51. Re2 {[%clk 0:00:49]}  Rb3 {[%clk 0:00:42]} 52. Re5 {[%clk 0:00:49]}  Ra3 {[%clk 0:00:41]} 53. Re6 {[%clk 0:00:50]}  Rb3 {[%clk 0:00:41]} 54. Re7 {[%clk 0:00:50]}  Ra3 {[%clk 0:00:42]} 55. Re8 {[%clk 0:00:51]}  Rb3 {[%clk 0:00:42]} 56. Re7 {[%clk 0:00:52]}  Ra3 {[%clk 0:00:42]} 57. Re3 {[%clk 0:00:52]}  Ra2+ {[%clk 0:00:42]} 58. Re2 {[%clk 0:00:51]}  Ra3 {[%clk 0:00:42]} 59. Rd2 {[%clk 0:00:52]}  Rb3 {[%clk 0:00:42]} 60. Rd4 {[%clk 0:00:51]}  Ra3 {[%clk 0:00:42]} 61. Rd5 {[%clk 0:00:51]}  Rb3 {[%clk 0:00:43]} 62. Re5 {[%clk 0:00:48]}  Ra3 {[%clk 0:00:43]} 63. Re3 {[%clk 0:00:47]}  Ra2+ {[%clk 0:00:43]} 64. Kf3 {[%clk 0:00:48]}  Ra1 {[%clk 0:00:42]} 65. Rd3 {[%clk 0:00:48]}  Re1 {[%clk 0:00:42]} 66. Rc3 {[%clk 0:00:47]}  Re7 {[%clk 0:00:42]} 67. Re3 {[%clk 0:00:47]}  Ra7 {[%clk 0:00:42]} 68. Ke2 {[%clk 0:00:47]}  Rd7 {[%clk 0:00:40]} 69. Rd3 {[%clk 0:00:47]}  Ra7 {[%clk 0:00:39]} 70. Ke3 {[%clk 0:00:47]}  Ra1 {[%clk 0:00:39]} 71. Kd4 {[%clk 0:00:47]}  Ra5 {[%clk 0:00:38]} 72. Rc3 {[%clk 0:00:46]}  Kg7 {[%clk 0:00:37]} 73. Kc4 {[%clk 0:00:44]}  Ra7 {[%clk 0:00:37]} 74. Kd5 {[%clk 0:00:44]}  Re7 {[%clk 0:00:32]} 75. Kd6 {[%clk 0:00:43]}  Re1 {[%clk 0:00:27]} 76. Kd5 {[%clk 0:00:41]}  Kh6 {[%clk 0:00:27]} 77. Kd4 {[%clk 0:00:41]}  Re4+ {[%clk 0:00:27]} 78. Kd5 {[%clk 0:00:41]}  Re1 {[%clk 0:00:27]} 79. Rd3 {[%clk 0:00:41]}  Re4 {[%clk 0:00:27]} 80. Kd6 {[%clk 0:00:38]}  Re1 {[%clk 0:00:27]} 81. Rf3 {[%clk 0:00:38]}  Re4 {[%clk 0:00:27]} 82. Kd5 {[%clk 0:00:36]}  Re1 {[%clk 0:00:28]} 83. Kd4 {[%clk 0:00:37]}  Re4+ {[%clk 0:00:28]} 84. Kd3 {[%clk 0:00:37]}  Re1 {[%clk 0:00:28]} 85. Re3 {[%clk 0:00:38]}  Ra1 {[%clk 0:00:28]} 86. Kd4 {[%clk 0:00:37]}  Ra4+ {[%clk 0:00:28]} 87. Ke5 {[%clk 0:00:37]}  Ra5+ {[%clk 0:00:28]} 88. Kf6 {[%clk 0:00:37]}  Ra6+ {[%clk 0:00:28]} 89. Re6 {[%clk 0:00:34]}  Ra3 {[%clk 0:00:28]} 90. Re8 {[%clk 0:00:33]}  Ra6+ {[%clk 0:00:27]} 91. Kf7 {[%clk 0:00:31]}  Ra7+ {[%clk 0:00:26]} 92. Re7 {[%clk 0:00:31]}  Ra3 {[%clk 0:00:22]} 93. Kg8 {[%clk 0:00:29]}  Ra8+ {[%clk 0:00:22]} 94. Kf7 {[%clk 0:00:29]}  Ra3 {[%clk 0:00:21]} 95. Re8 {[%clk 0:00:29]} 1/2-1/2


[Site "https://www.chess.com"]

[Event "Titled Tuesday Blitz May 16 Late 2023"]
[White "Bilan, Danila"]
[Black "Georg, Heinz"]
[WhiteFideId "24161918"]
[BlackFideId "4607295"]
[WhiteElo "2182"]
[BlackElo "2320"]
[Result "1-0"]
[Round "07"]
[TimeControl "180+2"]
[Date "2023.05.16"]
[WhiteClock "0:00:37"]
[BlackClock "0:00:10"]

1. d4 {[%clk 0:03:00]}  e6 {[%clk 0:02:58]} 2. Nf3 {[%clk 0:03:00]}  f5 {[%clk 0:02:57]} 3. g3 {[%clk 0:03:00]}  Nf6 {[%clk 0:02:58]} 4. Bg2 {[%clk 0:03:00]}  Be7 {[%clk 0:02:58]} 5. O-O {[%clk 0:03:01]}  O-O {[%clk 0:02:58]} 6. c4 {[%clk 0:03:02]}  d6 {[%clk 0:02:59]} 7. Nc3 {[%clk 0:03:01]}  Ne4 {[%clk 0:02:59]} 8. Qc2 {[%clk 0:03:00]}  Nxc3 {[%clk 0:02:59]} 9. Qxc3 {[%clk 0:03:00]}  a5 {[%clk 0:02:59]} 10. b3 {[%clk 0:02:57]}  Bf6 {[%clk 0:02:54]} 11. Bb2 {[%clk 0:02:56]}  Nc6 {[%clk 0:02:54]} 12. Rad1 {[%clk 0:02:49]}  Qe8 {[%clk 0:02:53]} 13. Qc2 {[%clk 0:02:36]}  e5 {[%clk 0:02:52]} 14. dxe5 {[%clk 0:01:58]}  dxe5 {[%clk 0:02:52]} 15. Ba3 {[%clk 0:01:55]}  Be7 {[%clk 0:02:48]} 16. Bxe7 {[%clk 0:01:50]}  Qxe7 {[%clk 0:02:49]} 17. Rd2 {[%clk 0:01:46]}  Be6 {[%clk 0:02:32]} 18. Rfd1 {[%clk 0:01:44]}  Rad8 {[%clk 0:02:20]} 19. Qc3 {[%clk 0:01:40]}  Rxd2 {[%clk 0:02:15]} 20. Rxd2 {[%clk 0:01:39]}  Qb4 {[%clk 0:01:25]} 21. Qxb4 {[%clk 0:01:26]}  axb4 {[%clk 0:01:26]} 22. Ng5 {[%clk 0:01:26]}  Bc8 {[%clk 0:00:39]} 23. Bd5+ {[%clk 0:01:24]}  Kh8 {[%clk 0:00:36]} 24. Nf7+ {[%clk 0:01:24]}  Kg8 {[%clk 0:00:22]} 25. Nxe5+ {[%clk 0:01:14]}  Kh8 {[%clk 0:00:21]} 26. Nf7+ {[%clk 0:01:03]}  Kg8 {[%clk 0:00:21]} 27. Ne5+ {[%clk 0:00:51]}  Kh8 {[%clk 0:00:21]} 28. Bxc6 {[%clk 0:00:50]}  bxc6 {[%clk 0:00:22]} 29. Nxc6 {[%clk 0:00:51]}  Bb7 {[%clk 0:00:18]} 30. Nxb4 {[%clk 0:00:50]}  Ra8 {[%clk 0:00:10]} 31. Nd5 {[%clk 0:00:45]}  c6 {[%clk 0:00:09]} 32. Nb6 {[%clk 0:00:42]}  Re8 {[%clk 0:00:09]} 33. Rd7 {[%clk 0:00:39]}  Ba6 {[%clk 0:00:08]} 34. Ra7 {[%clk 0:00:37]}  Bc8 {[%clk 0:00:08]} 35. Ra8 {[%clk 0:00:36]}  Bd7 {[%clk 0:00:08]} 36. Rxe8+ {[%clk 0:00:36]}  Bxe8 {[%clk 0:00:09]} 37. c5 {[%clk 0:00:36]}  Kg8 {[%clk 0:00:10]} 38. a4 {[%clk 0:00:36]}  Kf7 {[%clk 0:00:11]} 39. a5 {[%clk 0:00:37]}  Ke6 {[%clk 0:00:10]} 40. a6 {[%clk 0:00:37]} 1-0


[Site "https://www.chess.com"]

[Event "Titled Tuesday Blitz May 16 Late 2023"]
[White "Martic, Ivan"]
[Black "Kev4444444444"]
[WhiteFideId "929301"]
[WhiteElo "2360"]
[BlackElo "2157"]
[Result "1-0"]
[Round "07"]
[TimeControl "180+2"]
[Date "2023.05.16"]
[WhiteClock "0:00:56"]
[BlackClock "0:00:17"]

1. e4 {[%clk 0:02:56]}  g6 {[%clk 0:02:59]} 2. d4 {[%clk 0:02:55]}  Bg7 {[%clk 0:03:00]} 3. Nc3 {[%clk 0:02:56]}  c5 {[%clk 0:02:58]} 4. d5 {[%clk 0:02:55]}  d6 {[%clk 0:02:56]} 5. Bb5+ {[%clk 0:02:54]}  Bd7 {[%clk 0:02:55]} 6. a4 {[%clk 0:02:54]}  Nf6 {[%clk 0:02:53]} 7. Nf3 {[%clk 0:02:54]}  O-O {[%clk 0:02:41]} 8. O-O {[%clk 0:02:53]}  b6 {[%clk 0:02:34]} 9. Re1 {[%clk 0:02:51]}  a6 {[%clk 0:02:32]} 10. Bf1 {[%clk 0:02:48]}  Bc8 {[%clk 0:02:18]} 11. h3 {[%clk 0:02:44]}  Nbd7 {[%clk 0:02:17]} 12. Bg5 {[%clk 0:02:41]}  h6 {[%clk 0:02:15]} 13. Bf4 {[%clk 0:02:41]}  Kh7 {[%clk 0:02:12]} 14. Qd2 {[%clk 0:02:38]}  Bb7 {[%clk 0:02:09]} 15. Rad1 {[%clk 0:02:35]}  Rc8 {[%clk 0:02:03]} 16. e5 {[%clk 0:02:30]}  dxe5 {[%clk 0:02:03]} 17. Nxe5 {[%clk 0:02:31]}  Nxe5 {[%clk 0:01:36]} 18. Bxe5 {[%clk 0:02:32]}  Ne8 {[%clk 0:01:36]} 19. Bf4 {[%clk 0:02:18]}  Nd6 {[%clk 0:01:33]} 20. Be5 {[%clk 0:02:13]}  Rc7 {[%clk 0:01:31]} 21. Bxg7 {[%clk 0:02:13]}  Kxg7 {[%clk 0:01:32]} 22. Qf4 {[%clk 0:02:10]}  Rd7 {[%clk 0:01:30]} 23. h4 {[%clk 0:02:08]}  h5 {[%clk 0:01:28]} 24. g3 {[%clk 0:02:07]}  Ne8 {[%clk 0:01:24]} 25. Bh3 {[%clk 0:02:06]}  Rd6 {[%clk 0:01:24]} 26. Qe5+ {[%clk 0:02:06]}  Nf6 {[%clk 0:01:24]} 27. Qxe7 {[%clk 0:02:05]}  Qxe7 {[%clk 0:01:15]} 28. Rxe7 {[%clk 0:02:06]}  Bxd5 {[%clk 0:01:15]} 29. Ra7 {[%clk 0:01:59]}  a5 {[%clk 0:01:08]} 30. Bg2 {[%clk 0:01:33]}  Rfd8 {[%clk 0:01:07]} 31. Nb5 {[%clk 0:01:31]}  Rc6 {[%clk 0:00:59]} 32. c4 {[%clk 0:01:24]}  Bxg2 {[%clk 0:00:44]} 33. Rxd8 {[%clk 0:01:25]}  Bf3 {[%clk 0:00:45]} 34. Rd6 {[%clk 0:01:22]}  Rc8 {[%clk 0:00:40]} 35. Rd3 {[%clk 0:01:19]}  Be2 {[%clk 0:00:38]} 36. Rd2 {[%clk 0:01:09]}  Re8 {[%clk 0:00:27]} 37. Rxf7+ {[%clk 0:01:00]}  Kg8 {[%clk 0:00:19]} 38. Rxf6 {[%clk 0:00:59]}  Bf3 {[%clk 0:00:17]} 39. Rxf3 {[%clk 0:00:56]} 1-0


[Site "https://www.chess.com"]

[Event "Titled Tuesday Blitz May 16 Late 2023"]
[White "Rosen, Eric"]
[Black "Kovacevic, Radmila"]
[WhiteFideId "2032562"]
[BlackFideId "933171"]
[WhiteElo "2331"]
[BlackElo "2194"]
[Result "1-0"]
[Round "07"]
[TimeControl "180+2"]
[Date "2023.05.16"]
[WhiteClock "0:00:13"]
[BlackClock "0:00:07"]

1. e4 {[%clk 0:03:00]}  e5 {[%clk 0:02:58]} 2. Nf3 {[%clk 0:03:00]}  f5 {[%clk 0:02:57]} 3. Nxe5 {[%clk 0:02:54]}  Qf6 {[%clk 0:02:54]} 4. d4 {[%clk 0:02:53]}  d6 {[%clk 0:02:52]} 5. Nd3 {[%clk 0:02:50]}  fxe4 {[%clk 0:02:52]} 6. Nf4 {[%clk 0:02:50]}  c6 {[%clk 0:02:46]} 7. d5 {[%clk 0:02:48]}  c5 {[%clk 0:02:44]} 8. Nc3 {[%clk 0:02:47]}  Bf5 {[%clk 0:02:43]} 9. g4 {[%clk 0:02:21]}  Bd7 {[%clk 0:02:05]} 10. Bg2 {[%clk 0:01:38]}  Qh4 {[%clk 0:01:49]} 11. h3 {[%clk 0:01:27]}  Nf6 {[%clk 0:01:43]} 12. Nxe4 {[%clk 0:01:20]}  Nxe4 {[%clk 0:01:26]} 13. Bxe4 {[%clk 0:01:20]}  Be7 {[%clk 0:01:18]} 14. Qd3 {[%clk 0:01:15]}  Na6 {[%clk 0:01:14]} 15. c3 {[%clk 0:01:12]}  O-O-O {[%clk 0:01:10]} 16. Be3 {[%clk 0:01:08]}  Rhf8 {[%clk 0:00:53]} 17. O-O-O {[%clk 0:00:52]}  g5 {[%clk 0:00:32]} 18. Ne6 {[%clk 0:00:50]}  Bxe6 {[%clk 0:00:31]} 19. dxe6 {[%clk 0:00:51]}  Nc7 {[%clk 0:00:29]} 20. Bxh7 {[%clk 0:00:40]}  d5 {[%clk 0:00:28]} 21. Bf5 {[%clk 0:00:41]}  b6 {[%clk 0:00:25]} 22. a4 {[%clk 0:00:37]}  Kb7 {[%clk 0:00:25]} 23. Qc2 {[%clk 0:00:35]}  a5 {[%clk 0:00:24]} 24. Kb1 {[%clk 0:00:34]}  Ka7 {[%clk 0:00:24]} 25. Qe2 {[%clk 0:00:35]}  Rd6 {[%clk 0:00:22]} 26. Bc1 {[%clk 0:00:32]}  Rfd8 {[%clk 0:00:21]} 27. f4 {[%clk 0:00:23]}  Qh8 {[%clk 0:00:19]} 28. fxg5 {[%clk 0:00:22]}  d4 {[%clk 0:00:20]} 29. c4 {[%clk 0:00:22]}  Qg7 {[%clk 0:00:13]} 30. h4 {[%clk 0:00:20]}  b5 {[%clk 0:00:11]} 31. axb5 {[%clk 0:00:20]}  Kb6 {[%clk 0:00:11]} 32. Bf4 {[%clk 0:00:19]}  d3 {[%clk 0:00:09]} 33. Rxd3 {[%clk 0:00:16]}  Rxd3 {[%clk 0:00:09]} 34. Bxd3 {[%clk 0:00:17]}  Qd4 {[%clk 0:00:08]} 35. Bxc7+ {[%clk 0:00:15]}  Kxc7 {[%clk 0:00:09]} 36. Rd1 {[%clk 0:00:16]}  Kb6 {[%clk 0:00:09]} 37. Bc2 {[%clk 0:00:14]}  Qf4 {[%clk 0:00:08]} 38. Rxd8 {[%clk 0:00:13]}  Bxd8 {[%clk 0:00:08]} 39. e7 {[%clk 0:00:12]}  Bxe7 {[%clk 0:00:08]} 40. Qxe7 {[%clk 0:00:12]}  Qf1+ {[%clk 0:00:09]} 41. Ka2 {[%clk 0:00:12]}  Qxc4+ {[%clk 0:00:09]} 42. Bb3 {[%clk 0:00:13]}  Qxg4 {[%clk 0:00:09]} 43. Qe6+ {[%clk 0:00:13]}  Kxb5 {[%clk 0:00:07]} 44. Qxg4 {[%clk 0:00:13]} 1-0


[Site "https://www.chess.com"]

[Event "Titled Tuesday Blitz May 16 Late 2023"]
[White "Fishbein, Mitch"]
[Black "marik_spb"]
[WhiteFideId "30922917"]
[WhiteElo "1964"]
[BlackElo "2437"]
[Result "0-1"]
[Round "07"]
[TimeControl "180+2"]
[Date "2023.05.16"]
[WhiteClock "0:00:04"]
[BlackClock "0:00:28"]

1. e4 {[%clk 0:02:52]}  c6 {[%clk 0:03:00]} 2. d4 {[%clk 0:02:50]}  d5 {[%clk 0:03:00]} 3. Nc3 {[%clk 0:02:51]}  dxe4 {[%clk 0:03:00]} 4. Nxe4 {[%clk 0:02:51]}  Nf6 {[%clk 0:03:01]} 5. Qd3 {[%clk 0:02:50]}  Nxe4 {[%clk 0:02:59]} 6. Qxe4 {[%clk 0:02:51]}  Qd5 {[%clk 0:02:58]} 7. Bd3 {[%clk 0:02:50]}  Qxe4+ {[%clk 0:02:51]} 8. Bxe4 {[%clk 0:02:50]}  g6 {[%clk 0:02:49]} 9. Nf3 {[%clk 0:02:50]}  Bg7 {[%clk 0:02:46]} 10. c3 {[%clk 0:02:48]}  Nd7 {[%clk 0:02:45]} 11. Ke2 {[%clk 0:02:44]}  O-O {[%clk 0:02:39]} 12. Bf4 {[%clk 0:02:44]}  Re8 {[%clk 0:02:33]} 13. Rhe1 {[%clk 0:02:37]}  e5 {[%clk 0:02:15]} 14. dxe5 {[%clk 0:02:37]}  Nxe5 {[%clk 0:02:13]} 15. Nxe5 {[%clk 0:02:37]}  Bxe5 {[%clk 0:02:13]} 16. Kf3 {[%clk 0:02:34]}  Bxf4 {[%clk 0:01:55]} 17. Kxf4 {[%clk 0:02:34]}  Be6 {[%clk 0:01:55]} 18. a3 {[%clk 0:02:24]}  Rad8 {[%clk 0:01:54]} 19. Rad1 {[%clk 0:02:22]}  Kg7 {[%clk 0:01:52]} 20. h4 {[%clk 0:02:21]}  h6 {[%clk 0:01:49]} 21. g4 {[%clk 0:02:19]}  Rxd1 {[%clk 0:01:45]} 22. Rxd1 {[%clk 0:02:17]}  Bxg4 {[%clk 0:01:45]} 23. Bxc6 {[%clk 0:01:58]}  bxc6 {[%clk 0:01:21]} 24. Kxg4 {[%clk 0:01:57]}  Re2 {[%clk 0:01:21]} 25. b4 {[%clk 0:01:36]}  Rxf2 {[%clk 0:01:21]} 26. Rd7 {[%clk 0:01:28]}  Rc2 {[%clk 0:01:19]} 27. Rxa7 {[%clk 0:01:27]}  Rxc3 {[%clk 0:01:19]} 28. Kf4 {[%clk 0:01:19]}  Rc4+ {[%clk 0:01:17]} 29. Kg3 {[%clk 0:01:14]}  h5 {[%clk 0:00:56]} 30. Rc7 {[%clk 0:01:09]}  Rc3+ {[%clk 0:00:56]} 31. Kf4 {[%clk 0:01:09]}  Rxa3 {[%clk 0:00:56]} 32. Rxc6 {[%clk 0:01:10]}  Rh3 {[%clk 0:00:56]} 33. b5 {[%clk 0:00:45]}  Rxh4+ {[%clk 0:00:56]} 34. Ke5 {[%clk 0:00:45]}  Rb4 {[%clk 0:00:56]} 35. b6 {[%clk 0:00:44]}  h4 {[%clk 0:00:56]} 36. Kd6 {[%clk 0:00:39]}  g5 {[%clk 0:00:51]} 37. Kc7 {[%clk 0:00:24]}  h3 {[%clk 0:00:50]} 38. b7 {[%clk 0:00:13]}  h2 {[%clk 0:00:38]} 39. Rc1 {[%clk 0:00:13]}  g4 {[%clk 0:00:35]} 40. Kd6 {[%clk 0:00:10]}  g3 {[%clk 0:00:29]} 41. Ke5 {[%clk 0:00:04]}  g2 {[%clk 0:00:28]} 0-1


[Site "https://www.chess.com"]

[Event "Titled Tuesday Blitz May 16 Late 2023"]
[White "Kim, Sergey"]
[Black "Kovalevsky, Stanislav"]
[WhiteFideId "13700570"]
[BlackFideId "13508598"]
[WhiteElo "2583"]
[BlackElo "2174"]
[Result "0-1"]
[Round "07"]
[TimeControl "180+2"]
[Date "2023.05.16"]
[WhiteClock "0:00:21"]
[BlackClock "0:00:32"]

1. d4 {[%clk 0:03:00]}  Nf6 {[%clk 0:02:59]} 2. c4 {[%clk 0:03:00]}  e6 {[%clk 0:03:00]} 3. Nc3 {[%clk 0:03:01]}  Bb4 {[%clk 0:03:00]} 4. Qc2 {[%clk 0:03:00]}  Bxc3+ {[%clk 0:03:01]} 5. Qxc3 {[%clk 0:03:00]}  b6 {[%clk 0:03:01]} 6. Nf3 {[%clk 0:02:59]}  Bb7 {[%clk 0:03:01]} 7. g3 {[%clk 0:03:00]}  d5 {[%clk 0:02:59]} 8. Bg2 {[%clk 0:02:59]}  Ne4 {[%clk 0:02:57]} 9. Qc2 {[%clk 0:02:59]}  O-O {[%clk 0:02:56]} 10. O-O {[%clk 0:02:58]}  Nd7 {[%clk 0:02:56]} 11. cxd5 {[%clk 0:02:51]}  exd5 {[%clk 0:02:55]} 12. Rd1 {[%clk 0:02:46]}  c5 {[%clk 0:02:52]} 13. dxc5 {[%clk 0:02:44]}  bxc5 {[%clk 0:02:53]} 14. b3 {[%clk 0:02:40]}  Rc8 {[%clk 0:02:47]} 15. Bb2 {[%clk 0:02:36]}  Qb6 {[%clk 0:02:42]} 16. Bh3 {[%clk 0:01:48]}  f5 {[%clk 0:02:35]} 17. Rac1 {[%clk 0:01:31]}  g5 {[%clk 0:02:01]} 18. Nxg5 {[%clk 0:01:12]}  Nxg5 {[%clk 0:02:00]} 19. Bxf5 {[%clk 0:01:12]}  Rc7 {[%clk 0:01:39]} 20. Bxh7+ {[%clk 0:01:09]}  Nxh7 {[%clk 0:01:35]} 21. Qd2 {[%clk 0:01:00]}  d4 {[%clk 0:01:25]} 22. b4 {[%clk 0:00:54]}  Qc6 {[%clk 0:01:05]} 23. f3 {[%clk 0:00:54]}  Qe6 {[%clk 0:01:05]} 24. bxc5 {[%clk 0:00:49]}  Qe3+ {[%clk 0:00:56]} 25. Qxe3 {[%clk 0:00:45]}  dxe3 {[%clk 0:00:56]} 26. Rd6 {[%clk 0:00:38]}  Ndf6 {[%clk 0:00:44]} 27. c6 {[%clk 0:00:32]}  Ba6 {[%clk 0:00:44]} 28. Re6 {[%clk 0:00:31]}  Bxe2 {[%clk 0:00:40]} 29. Rxe3 {[%clk 0:00:30]}  Bb5 {[%clk 0:00:41]} 30. Re6 {[%clk 0:00:29]}  Re8 {[%clk 0:00:34]} 31. Rxf6 {[%clk 0:00:27]}  Nxf6 {[%clk 0:00:34]} 32. Bxf6 {[%clk 0:00:21]}  Rxc6 {[%clk 0:00:32]} 0-1


[Site "https://www.chess.com"]

[Event "Titled Tuesday Blitz May 16 Late 2023"]
[White "Sliwicki, Damian"]
[Black "Gatterer, Florian"]
[WhiteFideId "1127128"]
[BlackFideId "811688"]
[WhiteElo "2030"]
[BlackElo "2221"]
[Result "0-1"]
[Round "07"]
[TimeControl "180+2"]
[Date "2023.05.16"]
[WhiteClock "0:00:00"]
[BlackClock "0:00:47"]

1. d4 {[%clk 0:03:00]}  Nf6 {[%clk 0:02:59]} 2. Nc3 {[%clk 0:02:59]}  d5 {[%clk 0:02:58]} 3. Bf4 {[%clk 0:02:59]}  c5 {[%clk 0:02:58]} 4. e3 {[%clk 0:02:55]}  cxd4 {[%clk 0:02:58]} 5. exd4 {[%clk 0:02:54]}  Bg4 {[%clk 0:02:57]} 6. Nf3 {[%clk 0:02:52]}  Nc6 {[%clk 0:02:56]} 7. Be2 {[%clk 0:02:47]}  e6 {[%clk 0:02:52]} 8. O-O {[%clk 0:02:47]}  Bxf3 {[%clk 0:02:51]} 9. Bxf3 {[%clk 0:02:46]}  Qb6 {[%clk 0:02:50]} 10. Re1 {[%clk 0:02:33]}  O-O-O {[%clk 0:02:39]} 11. Be3 {[%clk 0:01:56]}  Qxb2 {[%clk 0:02:21]} 12. Qd2 {[%clk 0:01:53]}  Bb4 {[%clk 0:02:16]} 13. Qd1 {[%clk 0:01:08]}  Qxc3 {[%clk 0:02:04]} 14. Rf1 {[%clk 0:01:08]}  Ne4 {[%clk 0:01:58]} 15. Rb1 {[%clk 0:01:06]}  Bd6 {[%clk 0:01:47]} 16. Rb3 {[%clk 0:00:46]}  Qa5 {[%clk 0:01:47]} 17. Qd3 {[%clk 0:00:42]}  Qa6 {[%clk 0:01:30]} 18. Qd1 {[%clk 0:00:38]}  Na5 {[%clk 0:01:17]} 19. Rd3 {[%clk 0:00:22]}  f5 {[%clk 0:01:10]} 20. Qb1 {[%clk 0:00:18]}  Kd7 {[%clk 0:00:56]} 21. Be2 {[%clk 0:00:08]}  Qc6 {[%clk 0:00:55]} 22. Ra3 {[%clk 0:00:06]}  Nc4 {[%clk 0:00:53]} 23. Rxa7 {[%clk 0:00:00]}  Kc7 {[%clk 0:00:47]} 0-1


[Site "https://www.chess.com"]